bitfinex-derivatives/quotes_BTCF0:USTF0_20250127
["timestamp","ask_amount","ask_price","bid_price","bid_amount"]
[1737973090292,0.562813,99047.0,99046.0,0.1189621]
[1737973092785,0.57317061,99047.0,99046.0,0.1189621]
[1737973093186,0.57417061,99047.0,99046.0,0.1189621]
[1737973096480,0.001,99047.0,99046.0,0.1189621]
[1737973098279,0.0376,99068.0,99046.0,0.1189621]
[1737973098585,0.0376,99068.0,99064.0,0.201978]
[1737973098780,0.239571,99068.0,99064.0,0.201978]
[1737973098986,0.201974,99067.0,99064.0,0.201978]
[1737973099392,0.201975,99066.0,99058.0,0.201989]
[1737973099691,0.201975,99066.0,99062.0,0.201982]
[1737973099893,0.204975,99066.0,99062.0,0.201982]
[1737973100292,0.204975,99066.0,99054.0,0.3608]
[1737973100293,0.003,99066.0,99054.0,0.3608]
[1737973100482,0.003,99066.0,99064.0,0.201978]
[1737973100687,0.003,99066.0,99065.0,0.0396]
[1737973101386,0.003,99066.0,99065.0,0.4004]
[1737973101788,0.00015142,99070.0,99069.0,0.201969]
[1737973101982,0.201927,99090.0,99085.0,0.201935]
[1737973102493,0.0801,99095.0,99085.0,0.201935]
[1737973102794,0.201935,99086.0,99078.0,0.48623019]
[1737973102992,0.201935,99086.0,99080.0,0.201945]
[1737973103589,0.15376967,99088.0,99078.0,0.48623019]
[1737973103796,0.15376967,99088.0,99085.0,0.201936]
[1737973103985,0.15376967,99088.0,99086.0,0.201932]
[1737973104888,0.201935,99086.0,99079.0,0.242447]
[1737973105089,0.15076967,99088.0,99079.0,0.242447]
[1737973105397,0.002,99086.0,99079.0,0.242447]
[1737973106489,0.201947,99080.0,99078.0,0.3626]
[1737973106689,0.201947,99080.0,99078.0,0.3608]
[1737973107391,0.201947,99080.0,99079.0,0.001]
[1737973107990,0.201947,99080.0,99078.0,0.3618]
[1737973108191,0.3608,99093.0,99078.0,0.3618]
[1737973108397,0.001,99080.0,99078.0,0.563749]
[1737973108592,0.001,99080.0,99079.0,0.001]
[1737973109389,0.201941,99083.0,99079.0,0.001]
[1737973109585,0.201941,99083.0,99081.0,0.201943]
[1737973110395,0.201943,99082.0,99078.0,0.3626]
[1737973110595,0.201943,99082.0,99078.0,0.563748]
[1737973110900,0.201943,99082.0,99081.0,0.001]
[1737973111298,0.00052001,99093.0,99091.0,0.201922]
[1737973111490,0.00015142,99096.0,99095.0,0.201916]
[1737973112988,0.06542289,99100.0,99099.0,0.201907]
[1737973115700,0.06542289,99100.0,99099.0,0.202907]
[1737973120201,0.06542289,99100.0,99099.0,0.001]
[1737973120399,0.201946,99080.0,99077.0,0.20210142]
[1737973120701,0.201946,99080.0,99077.0,0.00015142]
[1737973120909,0.20195,99078.0,99077.0,0.00015142]
[1737973121294,0.3608,99092.0,99081.0,0.201944]
[1737973121495,0.00010019,99087.0,99081.0,0.201944]
[1737973121706,0.201944,99081.0,99080.0,0.12463019]
[1737973121901,0.00010019,99087.0,99077.0,0.00015142]
[1737973122299,0.201939,99084.0,99077.0,0.00015142]
[1737973122501,0.201939,99084.0,99080.0,0.201946]
[1737973122796,0.201939,99084.0,99077.0,0.00015142]
[1737973123002,0.201939,99084.0,99082.0,0.201941]
[1737973124703,0.201943,99082.0,99080.0,0.001]
[1737973125302,0.00010019,99087.0,99086.0,0.201934]
[1737973125611,0.3608,99114.0,99083.0,0.3608]
[1737973125807,0.3608,99114.0,99096.0,0.3608]
[1737973126111,0.201883,99112.0,99107.0,0.3608]
[1737973126605,0.201888,99109.0,99107.0,0.3608]
[1737973126908,0.201894,99106.0,99104.0,0.12463019]
[1737973127112,0.201897,99105.0,99103.0,0.201899]
[1737973127611,0.44420001,99116.0,99100.0,0.00015134]
[1737973127912,0.201889,99108.0,99107.0,0.001]
[1737973128312,0.003,99114.0,99103.0,0.001]
[1737973128515,0.201897,99104.0,99103.0,0.001]
[1737973128811,0.201903,99101.0,99100.0,0.00115134]
[1737973129211,0.201928,99089.0,99080.0,0.12463019]
[1737973129511,0.201928,99089.0,99076.0,0.3608]
[1737973129512,0.201928,99089.0,99088.0,0.20193]
[1737973131007,0.201928,99089.0,99082.0,0.201942]
[1737973131603,0.201928,99089.0,99084.0,0.201937]
[1737973131799,0.201928,99089.0,99085.0,0.201936]
[1737973132008,0.201928,99089.0,99086.0,0.201933]
[1737973132515,0.201945,99081.0,99079.0,0.12478153]
[1737973132806,0.0414,99088.0,99079.0,0.00015134]
[1737973133010,0.00015108,99098.0,99087.0,0.3608]
[1737973133217,0.00015108,99098.0,99096.0,0.562714]
[1737973133408,0.00015108,99098.0,99096.0,0.201914]
[1737973133610,0.00015108,99098.0,99087.0,0.12547019]
[1737973133611,0.3608,99097.0,99087.0,0.12547019]
[1737973133809,0.0422,99096.0,99084.0,0.201938]
[1737973134016,0.001,99089.0,99080.0,0.12463019]
[1737973134311,0.001,99089.0,99080.0,0.201945]
[1737973134611,0.0413,99088.0,99080.0,0.201945]
[1737973134806,0.16721647,99081.0,99079.0,0.00015134]
[1737973135007,0.52801647,99081.0,99079.0,0.00115134]
[1737973135710,0.52801647,99081.0,99079.0,0.00015134]
[1737973137508,0.52901647,99081.0,99079.0,0.00015134]
[1737973137912,0.52901647,99081.0,99079.0,0.00115134]
[1737973138101,0.52801647,99081.0,99079.0,0.00115134]
[1737973138614,0.52901647,99081.0,99079.0,0.00015134]
[1737973138915,0.53001647,99081.0,99079.0,0.00015134]
[1737973139310,0.52901647,99081.0,99079.0,0.00015134]
[1737973139506,0.53001647,99081.0,99079.0,0.00015134]
[1737973142809,0.52901647,99081.0,99079.0,0.00015134]
[1737973143313,0.201995,99057.0,99050.0,0.12463019]
[1737973143614,0.0414,99056.0,99047.0,0.202012]
[1737973143809,0.202,99054.0,99049.0,0.202008]
[1737973144016,0.0441,99055.0,99053.0,0.202001]
[1737973144211,0.0414,99056.0,99053.0,0.202001]
[1737973145015,0.001,99054.0,99053.0,0.202001]
[1737973145215,0.001,99054.0,99053.0,0.203001]
[1737973145416,0.00015143,99064.0,99053.0,0.3618]
[1737973145612,0.00015143,99064.0,99063.0,0.562781]
[1737973146215,0.20213143,99064.0,99058.0,0.201989]
[1737973146519,0.201986,99061.0,99054.0,0.12463019]
[1737973146713,0.00015143,99064.0,99058.0,0.201991]
[1737973147218,0.201981,99063.0,99058.0,0.201991]
[1737973147414,0.201985,99062.0,99058.0,0.201991]
[1737973147616,0.201985,99061.0,99054.0,0.13468759]
[1737973147808,0.001,99061.0,99054.0,0.12463019]
[1737973148213,0.201997,99056.0,99054.0,0.12463019]
[1737973148525,0.0421,99055.0,99053.0,0.3616]
[1737973148716,0.20201,99049.0,99046.0,0.56793463]
[1737973148908,0.20201,99049.0,99047.0,0.202012]
[1737973149522,0.202012,99048.0,99046.0,0.24044844]
[1737973149820,0.202012,99048.0,99046.0,0.44246344]
[1737973150210,0.0428,99053.0,99046.0,0.24044844]
[1737973150416,0.0428,99053.0,99048.0,0.202011]
[1737973150818,0.00052001,99054.0,99053.0,0.202001]
[1737973151119,0.3608,99086.0,99053.0,0.202001]
[1737973151120,0.09040979,99068.0,99063.0,0.201981]
[1737973151319,0.12051985,99073.0,99072.0,0.201963]
[1737973151621,0.12051985,99073.0,99072.0,0.562763]
[1737973152715,0.12051985,99073.0,99072.0,0.57280728]
[1737973153317,0.12151985,99073.0,99072.0,0.57280728]
[1737973154415,0.11703998,99073.0,99072.0,0.562763]
[1737973155224,0.001,99073.0,99072.0,0.562763]
[1737973156530,0.00015127,99082.0,99081.0,0.201944]
[1737973157921,0.00115127,99082.0,99081.0,0.201944]
[1737973158114,0.00115127,99082.0,99081.0,0.562744]
[1737973158426,0.3608,99105.0,99081.0,0.3608]
[1737973158627,0.201922,99092.0,99086.0,0.201933]
[1737973159018,0.0809,99100.0,99086.0,0.201933]
[1737973159019,0.3608,99094.0,99086.0,0.201933]
[1737973159226,0.3608,99094.0,99081.0,0.3608]
[1737973159430,0.1719329,99092.0,99087.0,0.20193]
[1737973159623,0.201926,99090.0,99087.0,0.20193]
[1737973159921,0.3608,99094.0,99091.0,0.201924]
[1737973160127,0.0809,99100.0,99089.0,0.3608]
[1737973160423,0.0809,99100.0,99099.0,0.201908]
[1737973161124,0.08064143,99100.0,99099.0,0.201908]
[1737973161329,0.37130393,99108.0,99104.0,0.201897]
[1737973161633,0.3608,99128.0,99110.0,0.201885]
[1737973162023,0.201833,99136.0,99110.0,0.201885]
[1737973162327,0.201831,99137.0,99117.0,0.201871]
[1737973162632,0.201835,99135.0,99117.0,0.562671]
[1737973162828,0.45598589,99139.0,99117.0,0.562671]
[1737973162829,0.201839,99133.0,99117.0,0.5728244]
[1737973163536,0.18061838,99133.0,99124.0,0.201857]
[1737973164027,0.3608,99131.0,99123.0,0.12463019]
[1737973164226,0.201856,99125.0,99123.0,0.12463019]
[1737973164421,0.201856,99125.0,99119.0,0.00015135]
[1737973164825,0.16713147,99123.0,99119.0,0.00015135]
[1737973165021,0.201863,99121.0,99119.0,0.00015135]
[1737973170629,0.201906,99100.0,99083.0,0.35813586]
[1737973170826,0.20191,99098.0,99085.0,0.201935]
[1737973171026,0.20191,99098.0,99082.0,0.24044844]
[1737973171233,0.20191,99098.0,99088.0,0.12463019]
[1737973171928,0.20191,99098.0,99088.0,0.12478154]
[1737973172326,0.01011143,99098.0,99088.0,0.00015135]
[1737973172525,0.562728,99089.0,99088.0,0.00015135]
[1737973174825,0.201959,99074.0,99062.0,0.24044844]
[1737973175026,0.201971,99068.0,99065.0,0.3608]
[1737973176637,0.0414,99073.0,99065.0,0.3608]
[1737973177230,0.0414,99073.0,99066.0,0.00251407]
[1737973177529,0.0414,99073.0,99066.0,0.20448707]
[1737973177728,0.0414,99073.0,99066.0,0.20348707]
[1737973178331,0.0414,99073.0,99066.0,0.20448707]
[1737973178523,0.0414,99073.0,99066.0,0.00251407]
[1737973178727,0.00015135,99077.0,99066.0,0.00251407]
[1737973178931,0.00015135,99077.0,99067.0,0.12463019]
[1737973179329,0.00015135,99077.0,99072.0,0.201961]
[1737973179522,0.00015135,99077.0,99073.0,0.201959]
[1737973180226,0.00015135,99077.0,99075.0,0.201956]
[1737973181838,0.00015135,99077.0,99075.0,0.202956]
[1737973186429,0.00015135,99077.0,99075.0,0.001]
[1737973186740,0.21217172,99077.0,99075.0,0.001]
[1737973186939,0.0386,99076.0,99075.0,0.001]
[1737973187935,0.00015135,99077.0,99075.0,0.001]
[1737973188139,0.00015135,99077.0,99076.0,0.201955]
[1737973188339,0.00015135,99077.0,99075.0,0.001]
[1737973188647,0.00015135,99077.0,99075.0,0.202956]
[1737973189847,0.20210435,99077.0,99075.0,0.001]
[1737973191437,0.20154446,99077.0,99075.0,0.001]
[1737973192639,0.0434,99079.0,99078.0,0.201951]
[1737973192834,0.562747,99080.0,99075.0,0.001]
[1737973193246,0.36067207,99080.0,99075.0,0.001]
[1737973193436,0.20195,99079.0,99075.0,0.001]
[1737973193947,0.20195,99079.0,99074.0,0.201958]
[1737973194539,0.20195,99079.0,99074.0,0.21185559]
[1737973195047,0.36067207,99080.0,99074.0,0.201958]
[1737973195249,0.36067207,99080.0,99070.0,0.3608]
[1737973195447,0.36067207,99080.0,99077.0,0.201952]
[1737973196039,0.56261907,99080.0,99077.0,0.201952]
[1737973198238,0.201955,99077.0,99070.0,0.562766]
[1737973198433,0.201955,99077.0,99070.0,0.3608]
[1737973198639,0.201955,99077.0,99074.0,0.201957]
[1737973200446,0.36067207,99080.0,99070.0,0.3626]
[1737973200651,0.00015108,99086.0,99084.0,0.201937]
[1737973200953,0.0418,99109.0,99108.0,0.201889]
[1737973201250,0.0418,99109.0,99100.0,0.48543019]
[1737973201458,0.22241838,99109.0,99102.0,0.201902]
[1737973201644,0.22241838,99109.0,99107.0,0.201891]
[1737973201952,0.18061838,99109.0,99108.0,0.3608]
[1737973203350,0.18361838,99109.0,99108.0,0.3608]
[1737973203552,0.14957767,99109.0,99108.0,0.3618]
[1737973204150,0.14957767,99109.0,99108.0,0.001]
[1737973204650,0.201908,99099.0,99098.0,0.00015135]
[1737973204854,0.562708,99099.0,99098.0,0.00015135]
[1737973206246,0.562708,99099.0,99098.0,0.00115135]
[1737973206654,0.564708,99099.0,99098.0,0.00115135]
[1737973207653,0.3628,99099.0,99098.0,0.00115135]
[1737973212250,0.002,99099.0,99098.0,0.00115135]
[1737973213960,0.002,99099.0,99098.0,0.20306135]
[1737973214260,0.002,99099.0,99098.0,0.20206135]
[1737973214563,0.19889365,99107.0,99104.0,0.201897]
[1737973214759,0.0395,99112.0,99100.0,0.12463019]
[1737973215057,0.00060001,99113.0,99112.0,0.201881]
[1737973215260,0.562663,99121.0,99114.0,0.201875]
[1737973215459,0.3608,99121.0,99110.0,0.12463019]
[1737973215757,0.00052001,99135.0,99120.0,0.3608]
[1737973215958,0.21062824,99161.0,99120.0,0.3608]
[1737973215959,0.0815,99159.0,99157.0,0.201788]
[1737973216148,0.21062824,99161.0,99160.0,0.201784]
[1737973216547,0.18089806,99161.0,99160.0,0.201784]
[1737973216761,0.3608,99190.0,99168.0,0.201767]
[1737973217060,0.201726,99189.0,99168.0,0.3608]
[1737973217263,0.21165557,99192.0,99186.0,0.20173]
[1737973217557,0.3608,99193.0,99192.0,0.201718]
[1737973218158,0.3608,99193.0,99186.0,0.01036662]
[1737973218470,0.201732,99186.0,99180.0,0.12463019]
[1737973219063,0.201732,99186.0,99181.0,0.20174]
[1737973219659,0.3608,99193.0,99180.0,0.12563019]
[1737973219860,0.3608,99193.0,99186.0,0.201729]
[1737973220161,0.3608,99193.0,99187.0,0.201727]
[1737973220363,0.3608,99193.0,99192.0,0.201718]
[1737973220563,0.3638,99193.0,99192.0,0.201718]
[1737973220771,0.003,99193.0,99192.0,0.201718]
[1737973221670,0.003,99193.0,99192.0,0.562518]
[1737973223170,0.003,99193.0,99192.0,0.001]
[1737973236377,0.003,99193.0,99192.0,0.202719]
[1737973237763,0.003,99193.0,99192.0,0.001]
[1737973238176,0.0411,99193.0,99192.0,0.001]
[1737973238874,0.003,99193.0,99192.0,0.001]
[1737973239067,0.003,99193.0,99192.0,0.3618]
[1737973242978,0.003,99193.0,99192.0,0.563519]
[1737973243177,0.3608,99235.0,99192.0,0.3618]
[1737973243384,0.56247,99216.0,99208.0,0.3608]
[1737973243682,0.36132001,99216.0,99214.0,0.201674]
[1737973243982,0.3608,99216.0,99214.0,0.201674]
[1737973244275,0.3608,99216.0,99208.0,0.3608]
[1737973244276,0.00056001,99251.0,99236.0,0.201629]
[1737973244482,0.3608,99245.0,99236.0,0.201629]
[1737973244680,0.201626,99238.0,99236.0,0.201629]
[1737973244879,0.0805,99248.0,99231.0,0.00015119]
[1737973245070,0.201615,99243.0,99238.0,0.3608]
[1737973245270,0.0805,99248.0,99243.0,0.201613]
[1737973245472,0.17947098,99247.0,99238.0,0.48543019]
[1737973245682,0.17947098,99247.0,99246.0,0.201609]
[1737973246684,0.17455641,99247.0,99246.0,0.201609]
[1737973246878,0.17455641,99247.0,99246.0,0.562409]
[1737973247274,0.0761,99265.0,99246.0,0.3608]
[1737973247473,0.0761,99265.0,99263.0,0.201573]
[1737973248175,0.201564,99269.0,99258.0,0.3608]
[1737973248383,0.01010318,99274.0,99265.0,0.3608]
[1737973248682,0.20152,99290.0,99273.0,0.562354]
[1737973249386,0.1504755,99275.0,99273.0,0.562354]
[1737973250871,0.1504755,99275.0,99273.0,0.3608]
[1737973252284,0.201552,99274.0,99273.0,0.3608]
[1737973253389,0.18069458,99275.0,99273.0,0.3608]
[1737973253995,0.03021908,99275.0,99273.0,0.3608]
[1737973254587,0.03021908,99275.0,99265.0,0.36196]
[1737973254787,0.201557,99272.0,99265.0,0.3608]
[1737973255992,0.201559,99271.0,99265.0,0.3608]
[1737973256193,0.03021908,99275.0,99265.0,0.56237]
[1737973256390,0.03021908,99275.0,99265.0,0.3608]
[1737973256594,0.03021908,99275.0,99273.0,0.562353]
[1737973257695,0.03021908,99275.0,99273.0,0.563353]
[1737973266416,0.03021908,99275.0,99273.0,0.3618]
[1737973266600,0.201552,99274.0,99273.0,0.3618]
[1737973266794,0.201552,99274.0,99273.0,0.001]
[1737973267000,0.03021908,99275.0,99256.0,0.201587]
[1737973267201,0.201586,99258.0,99256.0,0.201587]
[1737973268111,0.3608,99267.0,99254.0,0.36207111]
[1737973268299,0.3608,99255.0,99239.0,0.17893733]
[1737973268501,0.201621,99240.0,99239.0,0.17893733]
[1737973268706,0.201621,99240.0,99239.0,0.18912229]
[1737973268904,0.201621,99240.0,99239.0,0.05313733]
[1737973269212,0.201621,99240.0,99238.0,0.00151138]
[1737973269503,0.201634,99234.0,99229.0,0.00015111]
[1737973269707,0.3608,99237.0,99229.0,0.04993422]
[1737973269896,0.7216,99237.0,99221.0,0.29822889]
[1737973270096,0.562458,99222.0,99221.0,0.29822889]
[1737973272801,0.562458,99222.0,99221.0,0.29922889]
[1737973274204,0.562458,99222.0,99221.0,0.001]
[1737973274510,0.201676,99213.0,99212.0,0.00015111]
[1737973274711,0.562476,99213.0,99212.0,0.00015111]
[1737973275701,0.201676,99213.0,99212.0,0.00015111]
[1737973276112,0.3608,99214.0,99212.0,0.00015111]
[1737973276903,0.3608,99214.0,99213.0,0.201676]
[1737973277303,0.00038516,99222.0,99213.0,0.0418]
[1737973277504,0.00038516,99222.0,99220.0,0.201662]
[1737973278013,0.09002344,99235.0,99220.0,0.201662]
[1737973278014,0.09002344,99235.0,99234.0,0.201634]
[1737973278218,0.11982578,99240.0,99239.0,0.201623]
[1737973279404,0.11982578,99240.0,99239.0,0.21194347]
[1737973280401,0.12082578,99240.0,99239.0,0.21194347]
[1737973280802,0.17954429,99252.0,99239.0,0.01032047]
[1737973281008,0.201543,99279.0,99274.0,0.201552]
[1737973281214,0.3608,99280.0,99274.0,0.201552]
[1737973282415,0.3608,99280.0,99265.0,0.0001511]
[1737973282604,0.3608,99269.0,99240.0,0.5884273]
[1737973282914,0.201613,99245.0,99240.0,0.4021]
[1737973283113,0.3608,99260.0,99240.0,0.4021]
[1737973283312,0.2016,99251.0,99240.0,0.60372]
[1737973283613,0.2016,99251.0,99241.0,0.201618]
[1737973283816,0.00015078,99255.0,99241.0,0.201618]
[1737973284017,0.201611,99245.0,99241.0,0.201618]
[1737973284811,0.201619,99241.0,99240.0,0.001]
[1737973287717,0.201626,99238.0,99236.0,0.00166257]
[1737973287911,0.038,99237.0,99236.0,0.00166257]
[1737973288113,0.038,99237.0,99236.0,0.0001511]
[1737973289322,0.038,99237.0,99236.0,0.0011511]
[1737973290021,0.038,99237.0,99236.0,0.0001511]
[1737973291222,0.04894336,99237.0,99236.0,0.0001511]
[1737973291721,0.04794336,99237.0,99236.0,0.0001511]
[1737973291927,0.04894336,99237.0,99236.0,0.0001511]
[1737973294115,0.04894336,99237.0,99213.0,0.0385]
[1737973294311,0.201667,99218.0,99213.0,0.0385]
[1737973294520,0.3608,99226.0,99213.0,0.0385]
[1737973294720,0.201673,99215.0,99213.0,0.0385]
[1737973294919,0.3608,99226.0,99213.0,0.0385]
[1737973294920,0.201659,99222.0,99213.0,0.0385]
[1737973295115,0.3608,99226.0,99213.0,0.0385]
[1737973295315,0.00015119,99227.0,99225.0,0.562451]
[1737973295924,0.00015119,99227.0,99225.0,0.201651]
[1737973296919,0.00015119,99227.0,99226.0,0.04321442]
[1737973297114,0.00015119,99227.0,99225.0,0.563651]
[1737973297320,0.00015119,99227.0,99225.0,0.202651]
[1737973298121,0.00015119,99227.0,99225.0,0.201651]
[1737973300122,0.00015119,99227.0,99225.0,0.202651]
[1737973300829,0.20180019,99227.0,99225.0,0.202651]
[1737973301030,0.00015119,99227.0,99225.0,0.202651]
[1737973301234,0.00015119,99227.0,99226.0,0.07555401]
[1737973301531,0.5799,99246.0,99243.0,0.201614]
[1737973301831,0.20159,99256.0,99240.0,0.20162]
[1737973302127,0.3608,99258.0,99246.0,0.1863273]
[1737973302334,0.201562,99270.0,99267.0,0.201566]
[1737973302630,0.201547,99277.0,99260.0,0.1863273]
[1737973302936,0.00015071,99278.0,99274.0,0.562352]
[1737973304122,0.00015071,99278.0,99274.0,0.563352]
[1737973304833,0.03421908,99275.0,99274.0,0.563352]
[1737973305236,0.18044329,99288.0,99274.0,0.7058942]
[1737973305435,0.20946834,99299.0,99287.0,0.3608]
[1737973305626,0.20946834,99299.0,99298.0,0.3608]
[1737973305935,0.20946834,99299.0,99298.0,0.562304]
[1737973306734,0.20946834,99299.0,99298.0,0.3608]
[1737973307129,0.201497,99302.0,99298.0,0.3608]
[1737973307333,0.562279,99310.0,99298.0,0.562302]
[1737973307539,0.3608,99310.0,99298.0,0.562302]
[1737973307729,0.36132001,99310.0,99298.0,0.562302]
[1737973307929,0.201497,99302.0,99298.0,0.3608]
[1737973308327,0.201501,99299.0,99298.0,0.3608]
[1737973308532,0.3608,99302.0,99289.0,0.0001511]
[1737973308741,0.20152,99291.0,99289.0,0.0001511]
[1737973309242,0.3608,99294.0,99289.0,0.0001511]
[1737973309631,0.201508,99296.0,99289.0,0.0001511]
[1737973309843,0.201513,99294.0,99289.0,0.0001511]
[1737973310040,0.46132001,99300.0,99289.0,0.0001511]
[1737973310333,0.4608,99300.0,99289.0,0.0001511]
[1737973310640,0.20152,99290.0,99289.0,0.0001511]
[1737973313440,0.20151,99295.0,99290.0,0.20152]
[1737973313643,0.20151,99295.0,99291.0,0.201516]
[1737973314137,0.46132001,99300.0,99291.0,0.201516]
[1737973314333,0.201516,99293.0,99291.0,0.201516]
[1737973314533,0.46140001,99300.0,99289.0,0.3620711]
[1737973314840,0.4608,99300.0,99292.0,0.201514]
[1737973315042,0.662301,99300.0,99292.0,0.201514]
[1737973315339,0.1,99300.0,99297.0,0.201505]
[1737973316545,0.201511,99295.0,99291.0,0.201516]
[1737973316934,0.201511,99295.0,99293.0,0.201514]
[1737973317351,0.101,99300.0,99295.0,0.201509]
[1737973317641,0.101,99300.0,99289.0,0.3621111]
[1737973317841,0.201519,99291.0,99289.0,0.3609511]
[1737973319442,0.201509,99296.0,99289.0,0.3609511]
[1737973319641,0.201509,99296.0,99294.0,0.201511]
[1737973320436,0.1,99300.0,99299.0,0.201501]
[1737973320840,0.201472,99314.0,99313.0,0.201473]
[1737973321043,0.05004843,99329.0,99313.0,0.3608]
[1737973321244,0.05004843,99329.0,99322.0,0.201454]
[1737973321445,0.05004843,99329.0,99313.0,0.3608]
[1737973321446,0.201452,99324.0,99313.0,0.3608]
[1737973321642,0.201454,99323.0,99319.0,0.20146]
[1737973322037,0.201456,99322.0,99319.0,0.20146]
[1737973322243,0.201457,99321.0,99319.0,0.20146]
[1737973323442,0.0411,99329.0,99316.0,0.00015103]
[1737973323846,0.201463,99319.0,99316.0,0.00015103]
[1737973324238,0.0401,99329.0,99316.0,0.00015103]
[1737973324543,0.201465,99317.0,99316.0,0.00015103]
[1737973326849,0.201465,99317.0,99316.0,0.00115103]
[1737973328248,0.242865,99317.0,99316.0,0.00115103]
[1737973329156,0.201465,99317.0,99316.0,0.00115103]
[1737973329644,0.3608,99326.0,99324.0,0.20145]
[1737973331651,0.201446,99327.0,99324.0,0.20145]
[1737973332161,0.201452,99324.0,99317.0,0.201463]
[1737973332454,0.201462,99319.0,99317.0,0.201463]
[1737973333554,0.201465,99317.0,99316.0,0.00015103]
[1737973336354,0.003,99317.0,99316.0,0.04423119]
[1737973336966,0.003,99317.0,99316.0,0.04623119]
[1737973337260,0.003,99317.0,99316.0,0.20361803]
[1737973337458,0.003,99317.0,99316.0,0.24669632]
[1737973337659,0.201456,99322.0,99317.0,0.201463]
[1737973338052,0.201456,99322.0,99318.0,0.201462]
[1737973338455,0.201456,99322.0,99319.0,0.20146]
[1737973338667,0.01002602,99333.0,99321.0,0.3608]
[1737973338960,0.2191,99335.0,99321.0,0.3608]
[1737973339260,0.42053,99335.0,99330.0,0.201437]
[1737973339662,0.201432,99334.0,99330.0,0.201437]
[1737973340053,0.201432,99334.0,99321.0,0.3608]
[1737973340249,0.201432,99334.0,99331.0,0.201436]
[1737973340453,0.201434,99333.0,99331.0,0.201436]
[1737973340862,0.004,99334.0,99330.0,0.001]
[1737973341060,0.201437,99331.0,99330.0,0.202437]
[1737973341454,0.201437,99331.0,99330.0,0.201437]
[1737973341655,0.004,99334.0,99325.0,0.201448]
[1737973341859,0.201455,99323.0,99321.0,0.3608]
[1737973342653,0.201455,99323.0,99321.0,0.562256]
[1737973343868,0.204455,99323.0,99321.0,0.562256]
[1737973344754,0.003,99323.0,99321.0,0.562256]
[1737973346162,0.003,99323.0,99322.0,0.04302475]
[1737973346664,0.3608,99336.0,99335.0,0.201429]
[1737973348167,0.3648,99336.0,99335.0,0.001]
[1737973350163,0.201429,99335.0,99332.0,0.201434]
[1737973350359,0.201431,99334.0,99332.0,0.201434]
[1737973351971,0.201441,99329.0,99327.0,0.201443]
[1737973353965,0.201441,99329.0,99327.0,0.202443]
[1737973356969,0.00014191,99333.0,99325.0,0.29822889]
[1737973357171,0.562243,99328.0,99327.0,0.001]
[1737973357873,0.3608,99328.0,99323.0,0.29822889]
[1737973358176,0.562243,99328.0,99327.0,0.001]
[1737973358781,0.3608,99328.0,99302.0,0.562294]
[1737973358970,0.562265,99317.0,99302.0,0.563414]
[1737973359374,0.562265,99317.0,99302.0,0.36192]
[1737973360472,0.562265,99317.0,99302.0,0.563415]
[1737973360676,0.562265,99317.0,99316.0,0.3600257]
[1737973361365,0.57216999,99317.0,99316.0,0.3600257]
[1737973361874,0.57216999,99317.0,99316.0,0.3610257]
[1737973362182,0.57216999,99317.0,99316.0,0.00215103]
[1737973362387,0.57616999,99317.0,99316.0,0.00215103]
[1737973363080,0.37570499,99317.0,99306.0,0.24082915]
[1737973363278,0.3608,99307.0,99291.0,0.35899467]
[1737973363473,0.201508,99296.0,99291.0,0.35787467]
[1737973364586,0.201516,99292.0,99291.0,0.35787467]
[1737973365677,0.3608,99296.0,99286.0,0.00015103]
[1737973365880,0.3608,99287.0,99274.0,0.35787467]
[1737973366078,0.56235,99275.0,99274.0,0.35787467]
[1737973367475,0.5725242,99275.0,99274.0,0.35787467]
[1737973367678,0.5725242,99275.0,99274.0,0.35887467]
[1737973368372,0.56235,99275.0,99274.0,0.35887467]
[1737973369289,0.56235,99275.0,99274.0,0.001]
[1737973369786,0.56235,99275.0,99274.0,0.002]
[1737973371081,0.56235,99275.0,99274.0,0.004]
[1737973372782,0.201537,99282.0,99274.0,0.004]
[1737973372982,0.00015103,99284.0,99280.0,0.562339]
[1737973373186,0.00015103,99284.0,99281.0,0.0715]
[1737973374378,0.00115103,99284.0,99282.0,0.201534]
[1737973374880,0.20168503,99284.0,99282.0,0.201534]
[1737973375083,0.20268503,99284.0,99282.0,0.201534]
[1737973376085,0.201536,99282.0,99281.0,0.0725]
[1737973376791,0.201536,99282.0,99281.0,0.0715]
[1737973377893,0.201536,99282.0,99281.0,0.0725]
[1737973378082,0.201536,99282.0,99281.0,0.0374]
[1737973378485,0.201536,99282.0,99281.0,0.001]
[1737973380886,0.21139631,99282.0,99281.0,0.001]
[1737973381794,0.201536,99282.0,99281.0,0.001]
[1737973383080,0.00015103,99284.0,99281.0,0.001]
[1737973383291,0.00015103,99284.0,99282.0,0.201536]
[1737973384182,0.201536,99283.0,99281.0,0.001]
[1737973384381,0.00115103,99284.0,99281.0,0.001]
[1737973384593,0.201534,99283.0,99281.0,0.001]
[1737973386191,0.201542,99279.0,99278.0,0.36192]
[1737973386384,0.201542,99279.0,99278.0,0.3608]
[1737973386594,0.00115103,99284.0,99282.0,0.201535]
[1737973386987,0.00985122,99303.0,99281.0,0.001]
[1737973387182,0.3608,99309.0,99297.0,0.201504]
[1737973387387,0.201494,99303.0,99298.0,0.0717]
[1737973387589,0.201494,99303.0,99300.0,0.201498]
[1737973387989,0.201501,99300.0,99298.0,0.0717]
[1737973388395,0.201501,99300.0,99298.0,0.0344]
[1737973388590,0.201514,99293.0,99292.0,0.36211103]
[1737973388895,0.201514,99293.0,99292.0,0.36095103]
[1737973389300,0.3608,99301.0,99298.0,0.201502]
[1737973389488,0.2015,99300.0,99298.0,0.201502]
[1737973391087,0.3608,99301.0,99293.0,0.0357]
[1737973391399,0.201508,99296.0,99293.0,0.0357]
[1737973392296,0.201512,99294.0,99293.0,0.0357]
[1737973393999,0.201512,99294.0,99292.0,0.36211103]